Cogmind - Beta 11.1 @@@ ROGUE MODE // 2022.10.01 @ 10:53:02 // Winter2019/RPGLIKE Player: Benkyo Result: Destroyed by Lightning with EMDS Performance ------------- Evolutions (4) 2000 Regions Visited (21) 4200 Robots Destroyed (410) 2050 Value Destroyed (16100) 16100 Prototype IDs (69) 1380 Alien Tech Used (0) 0 Bonus (12786) 12786 TOTAL SCORE: 38516 Bonus ------- Triggered High Security 1000 High Alert Combat Kills 7419 Follower Combat Kills 2430 Network Hubs Disabled 400 Met Imprinter 300 Destroyed Z-Imprinter 1000 Triggered Deep Caves Wall 500 Exposed GOLEM Chamber 500 A7 Reached Mainframe 300 Met R17 at Cetus 500 Friendly Fire -1563 Cogmind --------- Core Integrity 0/800 Matter 154/300 Energy 1738/1800 System Corruption 9% Temperature Cool (9) Movement Rolling (145) Ox3 Location -6/Hub_04(d) Parts ------- > --- POWER (4) -------- Zionite Light DM Reactor Zionite Light DM Reactor Quantum Reactor Quantum Reactor > --- PROPULSION (2) --- Armored Huge Wheel > --- UTILITY (4) ------ Assembled Biocell Array Experimental Signal Interpreter Advanced Terrain Scanner 0b10 Decoder Chip [Generic] > --- WEAPON (5) ------- Assembled Focal Cannon Assembled Focal Cannon Assembled Focal Cannon Gauss Rifle Advanced KE Penetrator > --- INVENTORY (5) ---- Protomatter-57 Zionite Biocell (600) Zionite Biocell (600) Improved System Restoration Module Rocket Array Peak State ------------ > --- POWER ------------ Zionite Light DM Reactor Zionite Light DM Reactor Quantum Reactor Quantum Reactor > --- PROPULSION ------- Armored Huge Wheel > --- UTILITY ---------- Assembled Biocell Array Experimental Signal Interpreter Advanced Terrain Scanner 0b10 Decoder Chip [Generic] > --- WEAPON ----------- Assembled Focal Cannon Assembled Focal Cannon Assembled Focal Cannon Advanced KE Penetrator Advanced Datajack > --- INVENTORY -------- Protomatter Zionite Biocell Zionite Biocell Improved System Restoration Module Rocket Array [Rating: 112] Favorites ----------- Power Zionite Light DM Reactor Engine Ion Engine Power Core Enhanced Nuclear Core Reactor Zionite Light DM Reactor Propulsion Armored Huge Wheel Wheel Armored Huge Wheel Utility Experimental Signal Interpreter Device Improved Terrain Scanner Storage Assembled Biocell Array Processor Experimental Signal Interpreter Hackware Experimental Hacking Suite Protection Zionite Weapon Casing Weapon Assembled Focal Cannon Energy Gun Plasma Rifle Energy Cannon Assembled Focal Cannon Ballistic Gun Advanced KE Penetrator Ballistic Cannon Light Cannon Launcher Rocket Array Special Weapon Remote Datajack Impact Weapon Heavy Flail Special Melee Weapon Advanced Datajack Build | -11 -10 -10 -10 -9 -8 -8 -7 -7 -7 -7 -7 -7 -7 -6 -6 -6 -6 -6 -6 -6 -6 ------- Run | Scr Mat Min Exi Min Mat Sto Fac Was Fac Low Low Zio Dee Pro Fac Was Fac Ext Cet Arc Hub Slots Evolved 11 | 3 2 . . . 1 . 1 . . . . . . . 1 . . . 2 1 . Power 3 | . . . . . 1 . . . . . . . . . . . . . 2 . . Propulsion 1 | 1 . . . . . . . . . . . . . . . . . . . . . Utility 3 | 1 1 . . . . . 1 . . . . . . . . . . . . . . Weapon 4 | 1 1 . . . . . . . . . . . . . 1 . . . . 1 . Parts Attached 121 | 7 8 3 2 1 5 6 5 4 12 3 4 14 22 . 3 1 1 5 7 6 2 Power 14 | 1 . . 1 . 2 2 . . 1 . . . 2 . . . . 1 4 . . Engine 2 | 1 . . 1 . . . . . . . . . . . . . . . . . . Core 4 | . . . . . 2 1 . . 1 . . . . . . . . . . . . Reactor 8 | . . . . . . 1 . . . . . . 2 . . . . 1 4 . . Propulsion 9 | 2 1 . . . . 4 1 . . . . . . . . . . 1 . . . Treads . | . . . . . . . . . . . . . . . . . . . . . . Leg . | . . . . . . . . . . . . . . . . . . . . . . Wheel 9 | 2 1 . . . . 4 1 . . . . . . . . . . 1 . . . Hover . | . . . . . . . . . . . . . . . . . . . . . . Flight . | . . . . . . . . . . . . . . . . . . . . . . Utility 45 | 2 1 1 . 1 2 . 1 3 1 1 2 7 10 . 2 1 1 3 2 4 . Device 33 | 2 1 1 . 1 1 . 1 2 1 1 2 1 6 . 2 1 1 3 2 4 . Storage 1 | . . . . . . . . . . . . . 1 . . . . . . . . Processor 8 | . . . . . 1 . . 1 . . . 5 1 . . . . . . . . Hackware 1 | . . . . . . . . . . . . 1 . . . . . . . . . Protection 2 | . . . . . . . . . . . . . 2 . . . . . . . . Artifact . | . . . . . . . . . . . . . . . . . . . . . . Weapon 53 | 2 6 2 1 . 1 . 3 1 10 2 2 7 10 . 1 . . . 1 2 2 Energy Gun 6 | . . . . . . . . . . . . . 6 . . . . . . . . Energy Cannon 21 | . 2 . 1 . 1 . 1 1 6 1 1 4 3 . . . . . . . . Ballistic Gun 7 | 2 2 1 . . . . . . . . . . . . . . . . 1 . 1 Ballistic Cannon 1 | . 1 . . . . . . . . . . . . . . . . . . . . Launcher 9 | . . 1 . . . . 1 . 2 1 . . 1 . 1 . . . . 1 1 Special Weapon 2 | . 1 . . . . . . . . . . 1 . . . . . . . . . Impact Weapon 6 | . . . . . . . 1 . 2 . 1 2 . . . . . . . . . Slashing Weapon . | . . . . . . . . . . . . . . . . . . . . . . Piercing Weapon . | . . . . . . . . . . . . . . . . . . . . . . Special Melee Weapon 1 | . . . . . . . . . . . . . . . . . . . . 1 . Unidentified Prototypes 22 | . . . 1 . . 1 . 1 2 1 . 6 8 . . . . . 1 . 1 Parts Lost 2 | . . . . . . . . . . . . 1 . . 1 . . . . . . Power . | . . . . . . . . . . . . . . . . . . . . . . Propulsion . | . . . . . . . . . . . . . . . . . . . . . . Utility 2 | . . . . . . . . . . . . 1 . . 1 . . . . . . Weapon . | . . . . . . . . . . . . . . . . . . . . . . Highest Loss Streak 1 | . . . . . . . . . . . . 1 . . 1 . . . . . . To Critical Strikes . | . . . . . . . . . . . . . . . . . . . . . . Average Slot Usage (%) 86 | . 97 100 92 88 87 89 84 89 89 82 71 74 86 90 89 91 90 90 91 92 92 Engine 1 | . 12 11 11 11 1 . . . . . . . . . . . . . . . . Core 5 | . . . . . 11 14 9 9 9 9 9 9 5 . . . . . . . . Reactor 11 | . . . . . . 5 9 9 9 9 9 9 12 18 17 16 16 15 25 26 26 Wheel 11 | . 25 22 22 22 21 19 12 9 9 9 9 9 9 9 8 8 8 8 7 6 6 Device 15 | . 27 33 33 33 29 20 23 25 25 19 8 9 8 9 8 8 7 8 7 6 6 Storage 2 | . . . . . . . . . . . . . 3 9 8 8 8 8 7 6 6 Processor 11 | . . . . . 2 10 9 9 9 9 9 12 20 18 17 16 16 16 14 13 13 Energy Cannon 22 | . 10 11 17 22 21 20 16 9 26 26 26 19 25 27 26 25 25 25 21 20 20 Ballistic Gun 1 | . 15 10 4 . . . . . . . . . . . . . . . 1 6 9 Launcher 1 | . . . . . . . 1 9 . . . . . . 2 8 8 8 5 . . Naked Turns . | . . . . . . . . . . . . . . . . . . . . . . Heaviest Build 117 | 11 16 16 33 34 42 48 53 45 47 51 57 51 71 71 74 74 74 74 114 114 117 Greatest Support 38 | 26 26 20 20 20 20 27 33 33 33 33 33 33 38 38 38 38 38 38 38 38 38 Greatest Overweight (x) 13 | . . . 1 1 2 13 1 1 1 1 1 1 2 1 1 1 1 1 2 2 3 Average Overweight (x) 1 | . . . . 1 1 2 . 1 1 1 1 . 1 1 1 1 1 1 1 2 2 Largest Inventory Capacity 5 | 2 3 3 3 3 3 3 3 3 4 4 4 4 4 4 4 4 4 4 4 5 5 Average Capacity 3 | 2 2 3 3 3 3 3 3 3 3 4 4 4 4 4 4 4 4 4 4 4 5 Most Carried 5 | . 3 3 3 3 3 3 3 3 4 4 4 4 4 4 4 3 4 4 4 5 5 Average Carried 3 | . 2 2 3 3 2 3 2 2 3 4 4 3 3 4 3 3 3 2 3 4 5 Final Capacity 5 | 2 3 3 3 3 3 3 3 3 4 4 4 4 4 4 4 4 4 4 4 5 5 Final Carried 5 | . 3 3 3 3 3 3 3 2 4 4 4 4 4 4 3 3 3 3 4 5 5 Class Distribution -------------------- 47% | Hacker-Skirmisher 8% | Generator-Assassin 6% | Skirmisher 5% | Mutant 5% | Pyromaniac-Skirmisher 5% | Hacker-Assassin 4% | Scavenger-Skirmisher 3% | Assassin Dominant Class ---------------- Mutant | -10/Materials Skirmisher | -10/Mines Skirmisher | -10/Exiles Mutant | -9/Mines Pyromaniac-Skirmisher | -8/Materials Pyromaniac-Skirmisher | -8/Storage Skirmisher | -7/Factory Assassin | -7/Waste Hacker-Skirmisher | -7/Factory Hacker-Skirmisher | -7/Lower Caves Hacker-Skirmisher | -7/Lower Caves Hacker-Assassin | -7/Zion Hacker-Skirmisher | -7/Deep Caves Hacker-Skirmisher | -6/Proximity Caves Hacker-Skirmisher | -6/Factory Hacker-Skirmisher | -6/Waste Hacker-Skirmisher | -6/Factory Hacker-Skirmisher | -6/Extension Generator-Skirmisher | -6/Cetus Generator-Assassin | -6/Archives Generator-Assassin | -6/Hub_04(d) Resources | -11 -10 -10 -10 -9 -8 -8 -7 -7 -7 -7 -7 -7 -7 -6 -6 -6 -6 -6 -6 -6 -6 ----------- Run | Scr Mat Min Exi Min Mat Sto Fac Was Fac Low Low Zio Dee Pro Fac Was Fac Ext Cet Arc Hub Matter Collected 4993 | 300 236 149 212 32 50 60 50 401 305 673 1123 249 457 . 30 . 224 142 106 148 46 Remotely . | . . . . . . . . . . . . . . . . . . . . . . Salvage Created 19284 | 122 475 90 . 67 2501 4273 1286 794 423 461 766 182 1199 490 1987 967 261 1113 102 496 1229 Parts 748 | 9 52 20 . 9 95 104 44 8 18 9 12 4 40 24 110 7 21 49 6 33 74 Haulers Intercepted 19 | . . . . . 5 6 1 . 1 . . . . . 1 . 1 . . . 4 Recyclers Shooed 5 | 1 1 . . . . 1 2 . . . . . . . . . . . . . . Parts Field Recycled 6 | . . . . . . . . . . . 6 . . . . . . . . . . Retrieved Matter 101 | . . . . . . . . . . . 101 . . . . . . . . . . Parts Self-Destructed 37 | . . . . . . . . . . 7 4 1 . 25 . . . . . . . Prevented 8 | . . . . . . . . . . 3 3 2 . . . . . . . . . Kills | -11 -10 -10 -10 -9 -8 -8 -7 -7 -7 -7 -7 -7 -7 -6 -6 -6 -6 -6 -6 -6 -6 ------- Run | Scr Mat Min Exi Min Mat Sto Fac Was Fac Low Low Zio Dee Pro Fac Was Fac Ext Cet Arc Hub Combat Hostiles Destroyed 338 | . 18 10 . 3 59 77 25 6 . 2 5 . 49 9 24 6 7 17 2 4 15 Melee 2 | . . . . . . . . . . . 2 . . . . . . . . . . Guns 13 | . 7 1 . . . . . . . . . . 1 . . . . . . 1 3 Cannons 122 | . 11 6 . 2 10 7 . . . 2 3 . 9 9 20 2 7 17 2 3 12 AOE 137 | . . 3 . 1 30 38 16 6 . . . . 35 . 4 4 . . . . . Classes Destroyed 26 | 2 6 . . 1 7 . 1 1 . 2 1 . 4 . . . . 1 . . . Worker 35 | . 1 1 . . 7 2 1 . 5 . . . . . 18 . . . . . . Builder 19 | . 1 . . 1 2 2 3 . 3 . . . . . 4 . 1 1 . . 1 Tunneler 7 | 2 . . . . 3 . . . 2 . . . . . . . . . . . . Hauler 19 | . . . . . 5 6 1 . 1 . . . . . 1 . 1 . . . 4 Recycler 18 | 1 . . . . 1 5 5 . 3 . . . . . 2 . . . . . 1 Minesweeper 1 | . . . . . . . . . . 1 . . . . . . . . . . . Mechanic 7 | . . . . . 2 3 1 . . . . . . . 1 . . . . . . Operator 14 | . 2 1 . . 2 1 1 . . . . . . . . . . . . 5 2 Watcher 12 | . 1 . . . 3 2 . . 1 . . . . . 2 . . . . . 3 Swarmer 51 | . 6 8 . 2 11 6 2 . . . 2 . . . 5 . 7 2 . . . Grunt 140 | . 12 2 . . 34 47 15 . . 2 . . . 5 9 . . 8 . . 6 Brawler 8 | . . . . . 2 2 1 . . . . . . 1 2 . . . . . . Duelist 7 | . . . . . 1 2 2 . . . . . . . 2 . . . . . . Protector 8 | . . . . . 1 5 1 . . . . . . . 1 . . . . . . Sentry 42 | . . . . . 9 15 3 . . . 1 . . 1 4 . . 3 . 4 2 Demolisher 1 | . . . . 1 . . . . . . . . . . . . . . . . . Hunter 9 | . . . . . . . 1 . . . . . . 1 1 . . 2 . . 4 Programmer 3 | . . . . . . . . . . . 2 . . 1 . . . . . . . Heavy 4 | . . . . . 1 . . . . . . . . . . . . . . . 3 Behemoth 1 | . . . . . . . . . . . . . . . . . . 1 . . . Compactor 12 | . . . . . . . . 6 . . . . . . . 6 . . . . . Cetus Guard 2 | . . . . . . . . . . . . . . . . . . . 2 . . Z-Light 9 | . . . . . . . . . . . . . 9 . . . . . . . . Decomposer 3 | . . . . . . . . . . . 3 . . . . . . . . . . Packrat 4 | . . . . . . . . . . . 4 . . . . . . . . . . Samaritan 5 | . . . . . . . . . . 4 1 . . . . . . . . . . Assembler 2 | . . . . . . . . . . . . . 2 . . . . . . . . Assembled 36 | . . . . . . . . . . . . . 36 . . . . . . . . Golem 4 | . . . . . . . . . . . . . 4 . . . . . . . . Surgeon 1 | . . . . . . . . . . . 1 . . . . . . . . . . Wasp 1 | . . . . . . . . . 1 . . . . . . . . . . . . Thug 2 | . . . . . . . . 1 . 1 . . . . . . . . . . . Savage 1 | . . . . . . . . . 1 . . . . . . . . . . . . Guerrilla 1 | . . . . . . . . . . . . . . . . . . 1 . . . Best Kill Streak 39 | 3 4 4 . 2 29 39 11 3 13 2 3 . 38 4 11 5 5 3 2 5 6 Combat Bots Only 36 | . 4 3 . 2 14 35 7 3 . 2 3 . 36 4 7 5 3 3 2 4 4 Max Kills in Single Turn 34 | 1 2 1 . 1 5 10 2 2 6 2 1 . 34 1 8 1 2 2 1 1 2 Gunslinging . | . . . . . . . . . . . . . . . . . . . . . . Exploded 34 | . . 1 . 1 4 4 2 1 . . . . 34 . 3 1 . . . . . Melee 1 | . . . . . . . . . . . 1 . . . . . . . . . . Uniques/NPCs Destroyed 1 | . . . . . . . . . . . . . 1 . . . . . . . . Z-Imprinter (-7/Deep Caves) Combat | -11 -10 -10 -10 -9 -8 -8 -7 -7 -7 -7 -7 -7 -7 -6 -6 -6 -6 -6 -6 -6 -6 -------- Run | Scr Mat Min Exi Min Mat Sto Fac Was Fac Low Low Zio Dee Pro Fac Was Fac Ext Cet Arc Hub Damage Taken 8665 | . 437 434 . 39 1444 807 443 . 94 78 624 60 663 126 886 31 213 779 74 76 1357 Core 7080 | . 343 351 . 30 1194 649 387 . 72 69 513 48 541 107 724 25 180 638 57 60 1092 Absorbed by Shields 260 | . . . . . . . 64 . 35 18 . . . . . . . 137 6 . . Redirected to Core 5521 | . 283 269 . 30 868 539 174 . 72 23 395 48 452 69 586 14 113 490 57 60 979 Core Remaining (%) 94 | 100 . . . 82 . 95 . . . . . . . 100 . . . . . . . Volleys Fired 767 | 5 81 29 . 8 110 92 76 38 12 14 18 6 48 16 61 13 19 44 9 26 42 Largest 5 | 2 3 3 . 1 2 1 1 1 3 3 3 2 3 3 3 4 3 3 3 4 5 Hottest 330 | 40 115 115 . 250 330 250 250 36 207 207 207 138 213 75 75 120 75 75 75 110 138 Shots Fired 1458 | 10 149 66 . 8 119 92 76 38 29 38 47 12 114 48 175 47 46 118 27 43 156 Gun 158 | 10 56 18 . . . . . . . . . . 15 . . . . . . 16 43 Cannon 1237 | . 92 43 . 8 119 92 72 . 29 36 47 11 96 48 175 38 46 118 27 27 113 Launcher 61 | . . 5 . . . . 4 38 . 2 . . 3 . . 9 . . . . . Special 2 | . 1 . . . . . . . . . . 1 . . . . . . . . . Kinetic 191 | 10 85 37 . . . . . . . . . . . . . . . . . 16 43 Thermal 997 | . 64 24 . 8 119 92 72 . . . . . 26 48 175 38 46 118 27 27 113 Explosive 61 | . . 5 . . . . 4 38 . 2 . . 3 . . 9 . . . . . Electromagnetic 207 | . . . . . . . . . 29 36 47 11 84 . . . . . . . . Phasic 1 | . . . . . . . . . . . . . 1 . . . . . . . . Robot Hit Streak 59 | 3 11 9 . 2 36 27 18 26 17 44 59 14 45 25 32 45 37 36 31 44 23 Robot Miss Streak 5 | 1 4 5 . 2 4 5 2 2 . . 1 1 2 1 2 1 2 4 . 1 1 Penetration Max 1 | . . . . . . . . . . . . . . . . . . . . . 1 Secondary Targets . | . . . . . . . . . . . . . . . . . . . . . . Shots Hit Robots 879 | 6 63 31 . 5 71 55 26 33 7 27 48 9 76 35 92 41 22 87 25 30 90 Core Hits 798 | 4 32 17 . 4 123 176 76 13 22 10 17 4 118 13 55 20 10 24 5 15 40 Critical Kills 3 | . . . . . . . . . . . . . . . . . . . . 3 . Critical Parts Destroyed 3 | . . . . . . . . . . . 1 . . . . . . . . . 2 Critical Strikes 15 | . 1 . . . . . . . . . 1 . 8 . . . . . . 3 2 Burn 1 | . . . . . . . . . . . . . 1 . . . . . . . . Destroy 5 | . . . . . . . . . . . . . . . . . . . . 3 2 Blast 1 | . 1 . . . . . . . . . . . . . . . . . . . . Corrupt 7 | . . . . . . . . . . . . . 7 . . . . . . . . Smash 1 | . . . . . . . . . . . 1 . . . . . . . . . . Melee Attacks 35 | . . . . . . . . . 3 . 24 7 . . . . . . . 1 . Impact 34 | . . . . . . . . . 3 . 24 7 . . . . . . . . . Slashing . | . . . . . . . . . . . . . . . . . . . . . . Piercing . | . . . . . . . . . . . . . . . . . . . . . . Sneak Attacks 1 | . . . . . . . . . . . . . . . . . . . . 1 . Combat Hostiles . | . . . . . . . . . . . . . . . . . . . . . . Follow-up Attacks . | . . . . . . . . . . . . . . . . . . . . . . Damage Inflicted 51576 | 73 1122 761 . 90 5545 6046 2543 4308 1594 1070 1675 244 4010 1436 6128 3465 1084 4129 1061 1073 4119 Guns 1659 | 73 431 125 . . . . . . . . . . 199 . . . . . . 291 540 Cannons 26306 | . 627 373 . 70 1775 1228 306 . 294 774 882 201 1725 1436 4633 1491 1084 4129 1061 782 3435 Explosions 22863 | . 64 263 . 20 3770 4818 2237 4308 1300 296 45 43 2086 . 1495 1974 . . . . 144 Melee 748 | . . . . . . . . . . . 748 . . . . . . . . . . Ramming . | . . . . . . . . . . . . . . . . . . . . . . Kinetic 1866 | 73 621 341 . . . . . . . . . . . . . . . . . 291 540 Thermal 34377 | . 437 157 . 90 5510 6046 2025 . . . 45 43 616 1436 5981 1491 1084 4129 1061 782 3444 Explosive 10417 | . . 263 . . 35 . 411 4308 1300 40 . . 1939 . 147 1974 . . . . . Electromagnetic 4168 | . 64 . . . . . 107 . 294 1030 882 201 1455 . . . . . . . 135 Impact 748 | . . . . . . . . . . . 748 . . . . . . . . . . Slashing . | . . . . . . . . . . . . . . . . . . . . . . Piercing . | . . . . . . . . . . . . . . . . . . . . . . Highest Corruption 23 | . 2 2 2 2 . . . . . . 5 5 . 1 . 23 22 20 16 15 9 Average Corruption 8 | . 2 2 2 2 . . . . . . 4 5 . 1 . 11 20 17 15 10 1 Corruption Purged 24 | . . . . . . . . . . . . . . . . 2 2 4 1 15 . Corruption Blocked . | . . . . . . . . . . . . . . . . . . . . . . Effects 135 | . 4 5 3 7 . . . . . . 10 3 . 4 . 10 16 43 13 17 . Message Errors 47 | . 2 1 1 5 . . . . . . 3 1 . 2 . 4 4 12 6 6 . Matter Fused 29 | . 1 . . 2 . . . . . . 1 . . . . 1 3 15 3 3 . Heat Flow Errors 11 | . 1 . 1 . . . . . . . 2 . . . . . 2 3 2 . . Energy Discharges 10 | . . 1 . . . . . . . . . 1 . 1 . 2 2 1 1 1 . Parts Rejected 4 | . . . 1 . . . . . . . . . . . . . . 3 . . . Data Loss (minor) 10 | . . . . . . . . . . . 1 . . . . 1 . 4 1 3 . Data Loss (major) 4 | . . . . . . . . . . . . . . . . 1 . 1 . 2 . Misfires 5 | . . 2 . . . . . . . . 1 1 . . . . . 1 . . . Alerts 4 | . . . . . . . . . . . 1 . . 1 . . 2 . . . . Misdirections 1 | . . . . . . . . . . . . . . . . . 1 . . . . Weapon Failures 10 | . . 1 . . . . . . . . 1 . . . . 1 2 3 . 2 . Overload Shots . | . . . . . . . . . . . . . . . . . . . . . . Overflow Damage 2042 | . 1 1 . . 102 67 16 21 32 133 389 47 62 42 552 . 103 291 . . 183 Projectiles 1402 | . 1 1 . . 37 3 . . 2 127 155 47 40 42 370 . 103 291 . . 183 Explosions 406 | . . . . . 65 64 16 21 30 6 . . 22 . 182 . . . . . . Melee 234 | . . . . . . . . . . . 234 . . . . . . . . . . Knockbacks 12 | . 2 3 . . . . . . . . 7 . . . . . . . . . . Impact 5 | . . . . . . . . . . . 5 . . . . . . . . . . Kinetic 5 | . 2 3 . . . . . . . . . . . . . . . . . . . Secondary 2 | . . . . . . . . . . . 2 . . . . . . . . . . Self-Inflicted Damage 1196 | . . 122 . 15 434 176 78 . . 42 . 61 . . 54 32 . . . . 182 Shots 75 | . . 4 . 1 35 18 9 . . 2 . 1 . . 1 2 . . . . 2 Rammed . | . . . . . . . . . . . . . . . . . . . . . . Targets Rammed . | . . . . . . . . . . . . . . . . . . . . . . Kicked . | . . . . . . . . . . . . . . . . . . . . . . Crushed . | . . . . . . . . . . . . . . . . . . . . . . Highest Temperature 1344 | . 194 90 155 19 203 325 1344 . . . 90 . . . . . 173 168 173 . . Average Temperature 87 | . 36 23 92 18 54 84 411 . . . 81 . . . . . 117 97 90 . . Received Heat Transfer 1771 | . 159 99 . . 333 288 76 . 6 18 45 . 162 63 286 . . 170 . . 66 Effects 16 | . . . . . . . 16 . . . . . . . . . . . . . . Shutdowns 3 | . . . . . . . 3 . . . . . . . . . . . . . . Interference 4 | . . . . . . . 4 . . . . . . . . . . . . . . Short Circuit 1 | . . . . . . . 1 . . . . . . . . . . . . . . Damage (major) 7 | . . . . . . . 7 . . . . . . . . . . . . . . Damage (core) 1 | . . . . . . . 1 . . . . . . . . . . . . . . Siege Activations . | . . . . . . . . . . . . . . . . . . . . . . Robots Corrupted 6 | . . . . . . . . . . 1 1 . 4 . . . . . . . . Combat Hostiles 4 | . . . . . . . . . . . . . 4 . . . . . . . . Parts Fried 34 | . . . . . . . . . 4 12 4 . 13 . . . . 1 . . . Impact Corruptions 15 | . . . . . . . . . . . 15 . . . . . . . . . . Robots Melted 70 | . . . . . 21 39 10 . . . . . . . . . . . . . . Combat Hostiles 60 | . . . . . 19 32 9 . . . . . . . . . . . . . . Parts Melted 336 | . 1 . . . 114 158 52 . . . . . . 1 1 . . 3 2 . 4 Heat Transferred 84013 | . 925 333 . 228 26090 34007 11090 . . . 50 . 547 800 3270 850 575 2262 575 425 1986 Parts Sabotaged . | . . . . . . . . . . . . . . . . . . . . . . Parts Stolen . | . . . . . . . . . . . . . . . . . . . . . . Parts Stripped . | . . . . . . . . . . . . . . . . . . . . . . Power Chain Reactions 8 | . . . . . . . 1 . . 2 1 1 2 . . . . . . . 1 Missiles Intercepted . | . . . . . . . . . . . . . . . . . . . . . . Alert | -11 -10 -10 -10 -9 -8 -8 -7 -7 -7 -7 -7 -7 -7 -6 -6 -6 -6 -6 -6 -6 -6 ------- Run | Scr Mat Min Exi Min Mat Sto Fac Was Fac Low Low Zio Dee Pro Fac Was Fac Ext Cet Arc Hub Peak Influence 3803 | 15 770 674 . 113 2592 3803 3220 1175 2336 . . . . . 1518 557 907 1434 999 667 1010 Initial 1729 | . 9 247 . . . 1100 1729 1106 682 . . . . . . 518 389 443 798 395 63 Average 1062 | 6 407 488 . 68 1551 2505 2629 1121 1462 . . . . . 835 544 636 865 906 406 516 Maximum Alert Level 5 | . 3 2 . . 5 5 5 4 5 . . . . . 4 2 3 4 3 2 3 Low Security (%) 10 | 100 21 . . 100 4 . . . . . . . . . 12 . . . . 10 16 Level 1 13 | . 23 32 . . 7 . . . . . . . . . 12 . 13 . . 45 11 Level 2 25 | . 46 67 . . 10 . . . 5 . . . . . 7 100 63 39 . 44 50 Level 3 14 | . 8 . . . 8 . . 19 37 . . . . . 30 . 23 31 100 . 21 Level 4 11 | . . . . . 10 16 . 80 5 . . . . . 37 . . 28 . . . Level 5 17 | . . . . . 28 38 100 . 52 . . . . . . . . . . . . High Security 6 | . . . . . 29 44 . . . . . . . . . . . . . . . Max Security . | . . . . . . . . . . . . . . . . . . . . . . Sterilizations 2 | . . . . . 1 1 . . . . . . . . . . . . . . . Squads Dispatched 64 | . 5 . . . 11 12 7 . 12 . . . . . 7 . 2 3 . . 5 Investigation 16 | . 4 . . . 3 . 1 . 5 . . . . . 1 . 1 1 . . . Extermination 1 | . . . . . . . . . 1 . . . . . . . . . . . . Reinforcement 18 | . 1 . . . 4 3 1 . 1 . . . . . 1 . . 2 . . 5 Assault 22 | . . . . . 3 8 4 . 3 . . . . . 3 . 1 . . . . Garrison 7 | . . . . . 1 1 1 . 2 . . . . . 2 . . . . . . Intercept . | . . . . . . . . . . . . . . . . . . . . . . Searches Triggered . | . . . . . . . . . . . . . . . . . . . . . . Construction Impeded 7 | . . . . . 3 2 1 . . . . . . . . . . . . . 1 Haulers Reinforced 3 | . . . . . . . . . 1 . . . . . 1 . . . . . 1 Active Scanning Responses . | . . . . . . . . . . . . . . . . . . . . . . Cargo Convoy Interrupts . | . . . . . . . . . . . . . . . . . . . . . . Stealth | -11 -10 -10 -10 -9 -8 -8 -7 -7 -7 -7 -7 -7 -7 -6 -6 -6 -6 -6 -6 -6 -6 --------- Run | Scr Mat Min Exi Min Mat Sto Fac Was Fac Low Low Zio Dee Pro Fac Was Fac Ext Cet Arc Hub Distress Signals 12 | . . . . . 2 3 . . 1 . . . . . 2 . . 2 1 . 1 Communications Jammed . | . . . . . . . . . . . . . . . . . . . . . . Distress Signals . | . . . . . . . . . . . . . . . . . . . . . . Times Spotted 441 | . 23 11 . 5 68 81 27 6 12 3 5 . 55 10 37 6 8 37 12 9 26 Peak Tracking Total 37 | . 3 3 . 4 12 20 6 3 3 3 4 . 37 4 7 2 3 5 5 1 7 Tactical Retreats 9 | . 1 . . . . . 1 . . . . . . . 4 . 1 1 . . 1 Traps | -11 -10 -10 -10 -9 -8 -8 -7 -7 -7 -7 -7 -7 -7 -6 -6 -6 -6 -6 -6 -6 -6 ------- Run | Scr Mat Min Exi Min Mat Sto Fac Was Fac Low Low Zio Dee Pro Fac Was Fac Ext Cet Arc Hub Traps Triggered 13 | . 3 . . . 1 3 2 . 1 . . . . . 1 . . 2 . . . Indirectly . | . . . . . . . . . . . . . . . . . . . . . . Trap Hack Attempts . | . . . . . . . . . . . . . . . . . . . . . . Triggered . | . . . . . . . . . . . . . . . . . . . . . . Disarmed . | . . . . . . . . . . . . . . . . . . . . . . Reprogrammed 9 | . 9 . . . . . . . . . . . . . . . . . . . . Reused . | . . . . . . . . . . . . . . . . . . . . . . Traps Extracted . | . . . . . . . . . . . . . . . . . . . . . . Installed . | . . . . . . . . . . . . . . . . . . . . . . Triggered 1 | . . . . . . . . . . 1 . . . . . . . . . . . Machines | -11 -10 -10 -10 -9 -8 -8 -7 -7 -7 -7 -7 -7 -7 -6 -6 -6 -6 -6 -6 -6 -6 ---------- Run | Scr Mat Min Exi Min Mat Sto Fac Was Fac Low Low Zio Dee Pro Fac Was Fac Ext Cet Arc Hub Machines Disabled 227 | . 24 3 . 1 41 31 47 . 23 . 1 1 2 . 20 . 6 1 2 7 17 Max in Single Turn 9 | . 2 1 . 1 3 2 8 . 9 . 1 1 1 . 4 . 2 1 . 1 8 Garrison Access 11 | . . . . . 1 1 1 . 2 . . . . . 4 . 1 . . . 1 Network Hub 2 | . . . . . . . . . . . . . . . . . . . . . 2 Machines Sabotaged . | . . . . . . . . . . . . . . . . . . . . . . Garrisons Compromised . | . . . . . . . . . . . . . . . . . . . . . . Overloaded Fab Kills . | . . . . . . . . . . . . . . . . . . . . . . Hacking | -11 -10 -10 -10 -9 -8 -8 -7 -7 -7 -7 -7 -7 -7 -6 -6 -6 -6 -6 -6 -6 -6 --------- Run | Scr Mat Min Exi Min Mat Sto Fac Was Fac Low Low Zio Dee Pro Fac Was Fac Ext Cet Arc Hub Machines Accessed 69 | . 8 . 1 . 8 4 5 . 10 4 2 . . . 6 . 3 13 1 . 4 Terminals 44 | . 6 . . . 6 4 3 . 4 . . . . . 3 . 2 12 1 . 3 Fabricators 2 | . . . . . . . 1 . 1 . . . . . . . . . . . . Repair Stations . | . . . . . . . . . . . . . . . . . . . . . . Recycling Units 8 | . 2 . . . 1 . 1 . 3 . . . . . . . . 1 . . . Scanalyzers 1 | . . . . . 1 . . . . . . . . . . . . . . . . Garrison Access 7 | . . . . . . . . . 2 . . . . . 3 . 1 . . . 1 Total Hacks 175 | . 26 . 1 . 28 8 13 . 24 11 5 . . . 13 . 10 19 3 . 14 Successful 114 | . 17 . 1 . 21 5 8 . 12 11 5 . . . 8 . 4 10 1 . 11 Failed 60 | . 8 . . . 7 3 5 . 12 . . . . . 5 . 6 9 2 . 3 Catastrophic 4 | . . . . . . . . . . . . . . . . . 1 2 1 . . Database Lockouts 1 | . 1 . . . . . . . . . . . . . . . . . . . . Manual 55 | . 12 . 1 . 14 . 4 . 5 . . . . . 3 . . 7 1 . 8 Terminals 121 | . 21 . . . 25 8 8 . 11 . . . . . 9 . 5 18 3 . 13 Fabricators 6 | . . . . . . . 3 . 3 . . . . . . . . . . . . Repair Stations . | . . . . . . . . . . . . . . . . . . . . . . Recycling Units 16 | . 5 . . . 1 . 2 . 7 . . . . . . . . 1 . . . Scanalyzers 2 | . . . . . 2 . . . . . . . . . . . . . . . . Garrison Access 13 | . . . . . . . . . 3 . . . . . 4 . 5 . . . 1 Terminal Hacks 72 | . 8 . 1 . 11 5 6 . 4 11 5 . . . 3 . 4 7 1 . 6 Record 12 | . . . . . . . . . . 8 4 . . . . . . . . . . Part Schematic 1 | . . . . . . . . . . . . . . . . . . . . . 1 Robot Analysis 6 | . 2 . . . 4 . . . . . . . . . . . . . . . . Prototype ID Bank 9 | . 2 . . . 4 . 1 . 1 . . . . . 1 . . . . . . Open Door 15 | . . . . . . 2 . . . 3 1 . . . . . 1 7 1 . . Level Access Points 1 | . . . . . . . . . . . . . . . . . . . . . 1 Branch Access Points 6 | . . . . . 1 1 1 . 1 . . . . . 1 . 1 . . . . Terminal Index 3 | . . . . . . . 1 . . . . . . . . . 1 . . . 1 Fabricator Index 1 | . . . . . . . . . . . . . . . . . . . . . 1 Scanalyzer Index 1 | . . . . . . . . . 1 . . . . . . . . . . . . Locate Traps 8 | . . . . . 1 1 2 . 1 . . . . . 1 . 1 . . . 1 Reprogram Traps 2 | . 2 . . . . . . . . . . . . . . . . . . . . Hauler Manifests 3 | . 1 . . . 1 . . . . . . . . . . . . . . . 1 Registered Components 2 | . . . . . . 1 1 . . . . . . . . . . . . . . Zone Layout 1 | . 1 . . . . . . . . . . . . . . . . . . . . EX-Prototype ID Bank 1 | . . . 1 . . . . . . . . . . . . . . . . . . Fabricator Hacks 4 | . . . . . . . 1 . 3 . . . . . . . . . . . . Network Status 2 | . . . . . . . 1 . 1 . . . . . . . . . . . . Load Schematic 1 | . . . . . . . . . 1 . . . . . . . . . . . . Build 1 | . . . . . . . . . 1 . . . . . . . . . . . . Repair Station Hacks . | . . . . . . . . . . . . . . . . . . . . . . Recycling Unit Hacks 4 | . 2 . . . . . . . 1 . . . . . . . . 1 . . . Retrieve Matter 1 | . . . . . . . . . 1 . . . . . . . . . . . . Retrieve Components 3 | . 2 . . . . . . . . . . . . . . . . 1 . . . Scanalyzer 2 | . . . . . 2 . . . . . . . . . . . . . . . . Insert Component 1 | . . . . . 1 . . . . . . . . . . . . . . . . Analyze 1 | . . . . . 1 . . . . . . . . . . . . . . . . Garrison Access Hacks 4 | . . . . . . . . . 1 . . . . . 2 . . . . . 1 Seal Access 4 | . . . . . . . . . 1 . . . . . 2 . . . . . 1 Unauthorized Hacks 28 | . 7 . . . 8 . 1 . 3 . . . . . 3 . . 2 . . 4 Terminals 21 | . 5 . . . 7 . . . . . . . . . 3 . . 2 . . 4 Assimilate 3 | . 1 . . . . . . . . . . . . . . . . . . . 2 Botnet 10 | . 2 . . . 3 . . . . . . . . . 2 . . 2 . . 1 Detonate 3 | . 1 . . . 1 . . . . . . . . . . . . . . . 1 Disrupt 1 | . . . . . 1 . . . . . . . . . . . . . . . . Operators 4 | . 1 . . . 2 . . . . . . . . . 1 . . . . . . Fabricators . | . . . . . . . . . . . . . . . . . . . . . . Repair Stations . | . . . . . . . . . . . . . . . . . . . . . . Recycling Units 7 | . 2 . . . 1 . 1 . 3 . . . . . . . . . . . . Tunnel 7 | . 2 . . . 1 . 1 . 3 . . . . . . . . . . . . Scanalyzers . | . . . . . . . . . . . . . . . . . . . . . . Garrison Access . | . . . . . . . . . . . . . . . . . . . . . . Data Cores Recovered . | . . . . . . . . . . . . . . . . . . . . . . Used . | . . . . . . . . . . . . . . . . . . . . . . Hacking Detections 41 | . 5 . . . 6 3 5 . 8 . . . . . 4 . 2 5 1 . 2 Full Trace Events 6 | . 1 . . . 1 . . . 2 . . . . . 1 . 1 . . . . Feedback Events . | . . . . . . . . . . . . . . . . . . . . . . Feedback Blocked . | . . . . . . . . . . . . . . . . . . . . . . Robot Schematics Acquired 3 | . . . . . . . . . . . . 3 . . . . . . . . . Robots Built . | . . . . . . . . . . . . . . . . . . . . . . Authchips . | . . . . . . . . . . . . . . . . . . . . . . Time . | . . . . . . . . . . . . . . . . . . . . . . Total Robot Build Rating . | . . . . . . . . . . . . . . . . . . . . . . Part Schematics Acquired 17 | . . . . . 1 . . . . . . 15 . . . . . . . . 1 Parts Built 1 | . . . . . . . . . 1 . . . . . . . . . . . . Authchips . | . . . . . . . . . . . . . . . . . . . . . . Time 204 | . . . . . . . . . 204 . . . . . . . . . . . . Total Part Build Rating 8 | . . . . . . . . . 8 . . . . . . . . . . . . Parts Repaired . | . . . . . . . . . . . . . . . . . . . . . . Time . | . . . . . . . . . . . . . . . . . . . . . . Parts Recycled . | . . . . . . . . . . . . . . . . . . . . . . Recycled Matter . | . . . . . . . . . . . . . . . . . . . . . . Retrieved Matter . | . . . . . . . . . . . . . . . . . . . . . . Retrieved Components 18 | . 12 . . . . . . . . . . . . . . . . 6 . . . Parts Scanalyzed 1 | . . . . . 1 . . . . . . . . . . . . . . . . Part Schematics Acquired 1 | . . . . . 1 . . . . . . . . . . . . . . . . Parts Damaged . | . . . . . . . . . . . . . . . . . . . . . . Bothacking | -11 -10 -10 -10 -9 -8 -8 -7 -7 -7 -7 -7 -7 -7 -6 -6 -6 -6 -6 -6 -6 -6 ------------ Run | Scr Mat Min Exi Min Mat Sto Fac Was Fac Low Low Zio Dee Pro Fac Was Fac Ext Cet Arc Hub Used RIF Installer . | . . . . . . . . . . . . . . . . . . . . . . Robots Hacked 2 | . . . . . . . . . . . . 1 . . . . . . . 1 . Non-combat . | . . . . . . . . . . . . . . . . . . . . . . Combat 2 | . . . . . . . . . . . . 1 . . . . . . . 1 . Robot Hacks Applied 2 | . . . . . . . . . . . . 1 . . . . . . . 1 . parse_system 2 | . . . . . . . . . . . . 1 . . . . . . . 1 . Relay Couplers Released 2 | . . . . . . . 1 . . . . . . . 1 . . . . . . Machine Destruction 2 | . . . . . . . 1 . . . . . . . 1 . . . . . . Fabnet Peak Effective % . | . . . . . . . . . . . . . . . . . . . . . . Robots Rewired 20 | . . . 2 . . . . . . . . . . . . . . 18 . . . Allies Hacked 1 | . . . . . . . . . . . 1 . . . . . . . . . . Hacks Repelled . | . . . . . . . . . . . . . . . . . . . . . . Allies | -11 -10 -10 -10 -9 -8 -8 -7 -7 -7 -7 -7 -7 -7 -6 -6 -6 -6 -6 -6 -6 -6 -------- Run | Scr Mat Min Exi Min Mat Sto Fac Was Fac Low Low Zio Dee Pro Fac Was Fac Ext Cet Arc Hub Total Allies 64 | . 1 1 2 . . . . 20 . 2 . 3 . . . 1 . 31 2 . 1 Largest Group 24 | . 1 1 2 2 . . . 19 19 10 7 3 3 1 1 1 . 24 22 9 8 Highest-Rated Group 796 | . 10 31 16 16 . . . 465 465 299 212 144 144 93 93 31 . 796 746 437 287 Highest-Rated Ally 159 | . 10 31 8 8 . . . 35 35 35 35 99 99 93 93 31 . 159 159 150 96 Total Orders 3 | . . . . . . . . . . . . . . . . . . 3 . . . STAY 1 | . . . . . . . . . . . . . . . . . . 1 . . . FOLLOW 2 | . . . . . . . . . . . . . . . . . . 2 . . . Ally Attacks 434 | . . . . 5 . . . 16 123 13 1 . 30 5 12 2 . 105 90 . 32 Total Damage 13717 | . . . . 54 . . . 301 2727 285 25 . 3616 182 737 20 . 2209 2381 . 1180 Kills 101 | . . . . 2 . . . . 30 1 . . 13 2 9 . . 24 11 . 9 Allies Corrupted 3 | . . . . . . . . . 1 . 2 . . . . . . . . . . Allies Melted . | . . . . . . . . . . . . . . . . . . . . . . Intel | -11 -10 -10 -10 -9 -8 -8 -7 -7 -7 -7 -7 -7 -7 -6 -6 -6 -6 -6 -6 -6 -6 ------- Run | Scr Mat Min Exi Min Mat Sto Fac Was Fac Low Low Zio Dee Pro Fac Was Fac Ext Cet Arc Hub Robot Analysis Total 6 | . 2 . . . 4 . . . . . . . . . . . . . . . . Derelict Logs Recovered 8 | . . 1 . 1 . . . . . 2 2 . . 2 . . . . . . . Drone Launches . | . . . . . . . . . . . . . . . . . . . . . . Drone Recoveries . | . . . . . . . . . . . . . . . . . . . . . . Decoded 0b10 Intel 78 | . . . . . . . . . . . . . . . 24 3 6 23 3 3 16 Traps 11 | . . . . . . . . . . . . . . . 2 . . 8 . . 1 Emergency Access 9 | . . . . . . . . . . . . . . . 4 . 1 . . . 4 Items 44 | . . . . . . . . . . . . . . . 16 3 3 14 . . 8 Machines 8 | . . . . . . . . . . . . . . . 2 . 2 . 2 2 . Patrols 3 | . . . . . . . . . . . . . . . . . . 1 . . 2 Guards 1 | . . . . . . . . . . . . . . . . . . . . . 1 Exits 2 | . . . . . . . . . . . . . . . . . . . 1 1 . Exploration | -11 -10 -10 -10 -9 -8 -8 -7 -7 -7 -7 -7 -7 -7 -6 -6 -6 -6 -6 -6 -6 -6 ------------- Run | Scr Mat Min Exi Min Mat Sto Fac Was Fac Low Low Zio Dee Pro Fac Was Fac Ext Cet Arc Hub Turns Passed 19545 | 70 843 434 251 470 1252 774 906 497 814 1624 1763 1522 2488 842 906 223 320 911 271 1779 585 Spaces Moved 12853 | 48 593 414 268 435 887 457 647 324 627 1285 1321 1241 1615 660 546 137 220 511 149 188 280 Core 3 | 2 . . . . . 1 . . . . . . . . . . . . . . . Treads . | . . . . . . . . . . . . . . . . . . . . . . Legs . | . . . . . . . . . . . . . . . . . . . . . . Wheels 12850 | 46 593 414 268 435 887 456 647 324 627 1285 1321 1241 1615 660 546 137 220 511 149 188 280 Hover . | . . . . . . . . . . . . . . . . . . . . . . Flight . | . . . . . . . . . . . . . . . . . . . . . . Fastest Speed 50 | 50 80 80 80 95 95 95 100 115 115 115 115 100 115 115 115 115 115 115 115 130 130 Average Speed 110 | 88 85 80 88 95 99 112 109 115 115 115 115 114 116 115 115 115 115 115 127 130 138 Slowest Speed 700 | 100 90 80 95 95 110 700 115 115 115 115 115 115 130 115 115 115 115 115 130 130 145 Overloaded Moves . | . . . . . . . . . . . . . . . . . . . . . . Propulsion Burnouts . | . . . . . . . . . . . . . . . . . . . . . . Robots Hopped . | . . . . . . . . . . . . . . . . . . . . . . Cave-ins Triggered . | . . . . . . . . . . . . . . . . . . . . . . Exploration Rate (%) 70 | 4 93 95 69 92 97 95 21 95 34 97 99 87 87 97 19 97 10 75 79 86 32 Regions Visited 21 Branch Regions 13 Pre-discovered Areas 12 | . 2 . . . 1 . 1 . 3 . 2 2 . 1 . . . . . . . Known Exits Taken 12 | . . . . . 1 1 . . 1 1 1 1 1 1 . . 1 1 1 1 . Unknown Exits Taken 5 | 1 1 1 1 1 . . . . . . . . . . . . . . . . . Scrap Searched 16 | . . 2 . 1 . . . . . 3 5 3 . 2 . . . . . . . Spaces Dug 302 | . . 15 . . 20 15 25 . 1 12 . 3 2 . 65 . . 5 . . 139 Terrain Destroyed 2355 | . . 54 . 10 603 451 204 153 50 23 6 9 24 12 204 105 95 22 4 4 322 Melee 4 | . . . . . . . . . 1 . . 3 . . . . . . . . . Projectile 186 | . . . . . 21 25 1 . . . . . 8 12 37 1 9 22 4 4 42 AOE 2165 | . . 54 . 10 582 426 203 153 49 23 6 6 16 . 167 104 86 . . . 280 Terrain Rammed . | . . . . . . . . . . . . . . . . . . . . . . Walls Destroyed . | . . . . . . . . . . . . . . . . . . . . . . Machines Disabled . | . . . . . . . . . . . . . . . . . . . . . . Actions | -11 -10 -10 -10 -9 -8 -8 -7 -7 -7 -7 -7 -7 -7 -6 -6 -6 -6 -6 -6 -6 -6 --------- Run | Scr Mat Min Exi Min Mat Sto Fac Was Fac Low Low Zio Dee Pro Fac Was Fac Ext Cet Arc Hub Total 16894 | 61 794 464 281 484 1138 624 771 403 695 1405 1489 1323 2135 707 693 161 249 742 208 1686 381 Wait 2514 | 2 83 6 4 30 41 29 20 15 32 92 115 31 376 25 66 1 1 35 23 1456 31 Move 12834 | 47 592 413 267 434 886 456 647 323 626 1284 1320 1240 1614 659 546 136 219 510 148 187 280 Hop . | . . . . . . . . . . . . . . . . . . . . . . Pick Up 35 | . 8 1 . 1 3 . 2 2 1 . . 4 4 . 1 . . 3 3 1 1 Fast Attach 79 | 7 2 1 2 1 5 5 4 2 6 1 2 10 14 . 2 . 1 3 4 5 2 Attach 10 | . 2 . . . . . 1 1 . . . 1 2 . 1 . . . 1 1 . Detach 7 | . . . . . . . . . 2 1 . . 1 . . . 1 . . 2 . Swap 33 | . 4 2 . . . 1 . 1 6 2 2 4 6 . . 1 . 2 2 . . Drop 86 | . 5 2 2 2 7 2 5 5 5 3 2 10 22 . 2 . 1 3 3 2 3 Fire 767 | 5 81 29 . 8 110 92 76 38 12 14 18 6 48 16 61 13 19 44 9 26 42 Melee 35 | . . . . . . . . . 3 . 24 7 . . . . . . . 1 . Ram 1 | . . . . . . . . . . . . . . . . . 1 . . . . Kick . | . . . . . . . . . . . . . . . . . . . . . . Crush . | . . . . . . . . . . . . . . . . . . . . . . Escape Stasis 8 | . . . . . . . . . . . . . . . . . . 8 . . . Rewire 85 | . . . 6 . . . . . . . . . . . . . . 79 . . . Trap . | . . . . . . . . . . . . . . . . . . . . . . Miscellaneous 400 | . 17 10 . 8 86 39 16 16 2 8 6 10 48 7 14 10 6 55 15 5 22 Route ------- -11/Scrapyard -10/Materials (discovered 4 exits: [*Mat x3] / [*Min]) -10/Mines (discovered 3 exits: [*Mat x2] / *Exi) -10/Exiles -9/Mines (discovered 2 exits: *Mat x2) -8/Materials (discovered 5 exits: *Fac x3 / *Sto x2) -8/Storage (discovered 2 exits: *Fac / Rec) -7/Factory (discovered 2 exits: Low x2) -7/Waste -7/Factory (discovered 3 exits: *Fac / *Low x2) -7/Lower Caves -7/Lower Caves (discovered 2 exits: *Fac / *Zio) -7/Zion (discovered 2 exits: *Dee / *Pro) -7/Deep Caves -6/Proximity Caves -6/Factory (discovered 5 exits: *Fac / Low x2 / Ext x2) -6/Waste -6/Factory (discovered 4 exits: Low x2 / *Ext x2) -6/Extension (discovered 3 exits: *Fac x2 / *Cet) -6/Cetus (discovered 2 exits: *Fac / *Arc) -6/Archives (discovered 3 exits: *Fac / *Hub x2) -6/Hub_04(d) (discovered 4 exits: *Fac x4) History --------- Turn | Location | Event 1 | -11/Scrapyard | Upgraded with Propulsion slot (x1) 1 | -11/Scrapyard | Upgraded with Utility slot (x1) 1 | -11/Scrapyard | Upgraded with Weapon slot (x1) 6 | -11/Scrapyard | Discovered new exit (range 15) 71 | -11/Scrapyard | Entered Materials 125 | -10/Materials | Central database locked down 314 | -10/Materials | Build established: Mutant 373 | -10/Materials | Reached level 2 405 | -10/Materials | Upgraded with Weapon slot (x1) 466 | -10/Materials | Discovered new exit (range 14) 596 | -10/Materials | Reached level 3 599 | -10/Materials | Upgraded with Utility slot (x1) 712 | -10/Materials | Discovered new exit (range 10) 823 | -10/Materials | Discovered new exit (range 15) 877 | -10/Materials | Discovered new exit (range 9) 914 | -10/Materials | Entered Mines 914 | -10/Mines | Accompanied by 1 ally 916 | -10/Mines | Reached level 4 939 | -10/Mines | Discovered new exit (range 6) 939 | -10/Mines | Deemed a non-threat by the Exiles lab entrance 942 | -10/Mines | Discovered new exit (range 14) 1149 | -10/Mines | Reached level 5 1155 | -10/Mines | Core integrity fell below 50% 1165 | -10/Mines | Escorted by a lone wolf Derelict 1223 | -10/Mines | Learned Materials emergency access door positions 1273 | -10/Mines | Discovered new exit (range 13) 1348 | -10/Mines | Entered Exiles 1348 | -10/Exiles | Found Exiles lab destroyed 1440 | -10/Exiles | Opened EX-Vault 1446 | -10/Exiles | Found Prototype Energy Cannon 1446 | -10/Exiles | Identified Firepult 1584 | -10/Exiles | Discovered new exit (range 12) 1599 | -10/Exiles | Entered Mines 1599 | -9/Mines | Accompanied by 2 allies 1697 | -9/Mines | Found a damaged Exp. Sensor Array with a note attached 1711 | -9/Mines | Met a Derelict bent on vengeance 1744 | -9/Mines | Found Prototype Device 1786 | -9/Mines | Discovered new exit (range 15) 1807 | -9/Mines | Assembled infested the area 1995 | -9/Mines | Discovered new exit (range 6) 2069 | -9/Mines | Entered Materials 2071 | -8/Materials | Reached level 6 2095 | -8/Materials | Reached level 7 2227 | -8/Materials | Reached level 8 2291 | -8/Materials | Discovered new exit (range 15) 2380 | -8/Materials | Reached level 9 2438 | -8/Materials | Core integrity fell below 50% 2444 | -8/Materials | Reached level 10 2450 | -8/Materials | Garrison activated, responded to threat 2457 | -8/Materials | Core integrity fell below 20% 2469 | -8/Materials | First assault squad dispatched 2482 | -8/Materials | Destroyed 14 combat bots 2507 | -8/Materials | Discovered new exit (range 16) 2532 | -8/Materials | Reached level 11 2555 | -8/Materials | Destroyed 8 combat bots 2590 | -8/Materials | Discovered new exit (range 16) 2653 | -8/Materials | Discovered new exit (range 16) 2709 | -8/Materials | Reached level 12 2756 | -8/Materials | Build established: Pyromaniac-Skirmisher 2763 | -8/Materials | Upgraded with Power slot (x1) 2773 | -8/Materials | Identified exit to Storage 2788 | -8/Materials | Identified Exp. Sensor Array 2948 | -8/Materials | High security lockdown imminent 2963 | -8/Materials | Sterilization system engaged 2963 | -8/Materials | Non-combat units ordered to evacuate 3020 | -8/Materials | Reached level 13 3063 | -8/Materials | Combat units ordered to evacuate 3263 | -8/Materials | Ambient heat levels rising (+10) 3263 | -8/Materials | Discovered new exit (range 14) 3264 | -8/Materials | Build established: Scavenger-Skirmisher 3321 | -8/Materials | Entered Storage 3322 | -8/Storage | Identified exit to Recycling 3460 | -8/Storage | Destroyed 13 combat bots 3470 | -8/Storage | Reached level 14 3721 | -8/Storage | First assault squad dispatched 3749 | -8/Storage | High security lockdown imminent 3755 | -8/Storage | Garrison activated, responded to threat 3761 | -8/Storage | Discovered new exit (range 18) 3776 | -8/Storage | Destroyed 17 combat bots 3816 | -8/Storage | Reached level 15 3829 | -8/Storage | High security lockdown engaged 3878 | -8/Storage | Destroyed 35 combat bots 3895 | -8/Storage | Sterilization system engaged 3895 | -8/Storage | Non-combat units ordered to evacuate 3995 | -8/Storage | Combat units ordered to evacuate 4093 | -8/Storage | Identified exit to Factory 4095 | -8/Storage | Entered Factory 4139 | -7/Factory | Reached level 16 4251 | -7/Factory | Garrison activated, responded to threat 4495 | -7/Factory | First assault squad dispatched 4503 | -7/Factory | Identified exit to Lower Caves 4510 | -7/Factory | Upgraded with Utility slot (x1) 4516 | -7/Factory | Reached level 17 4664 | -7/Factory | Build established: Skirmisher 4766 | -7/Factory | Destroyed 7 combat bots 5001 | -7/Factory | Sucked down chute 5001 | -7/Factory | Entered Waste 5002 | -7/Waste | Met a frightened Derelict 5034 | -7/Waste | Spotted C-40 Crusher 5046 | -7/Waste | Spotted C-40 Crusher 5048 | -7/Waste | Spotted C-40 Crusher 5050 | -7/Waste | Destroyed C-40 Crusher 5059 | -7/Waste | Destroyed C-40 Crusher 5068 | -7/Waste | Destroyed C-40 Crusher 5083 | -7/Waste | Spotted C-40 Crusher 5085 | -7/Waste | Spotted C-40 Crusher 5091 | -7/Waste | Destroyed C-40 Crusher 5139 | -7/Waste | Destroyed C-40 Crusher 5158 | -7/Waste | Spotted C-40 Crusher 5179 | -7/Waste | Build established: Assassin 5228 | -7/Waste | Destroyed C-40 Crusher 5274 | -7/Waste | Warlord forces began an assault 5415 | -7/Waste | Discovered new exit (range 13) 5475 | -7/Waste | Identified exit to Factory 5498 | -7/Waste | Entered Factory 5498 | -7/Factory | Accompanied by 19 allies 5802 | -7/Factory | Build established: Hacker-Skirmisher 5846 | -7/Factory | Reached level 18 5901 | -7/Factory | Fabricated Exp. Sensor Array? 5942 | -7/Factory | Found Prototype Launcher 5943 | -7/Factory | Identified Rocket Array 6009 | -7/Factory | Garrison activated, responded to threat 6111 | -7/Factory | Discovered new exit (range 14) 6126 | -7/Factory | Identified exit to Factory 6289 | -7/Factory | Garrison activated, responded to threat 6298 | -7/Factory | First assault squad dispatched 6312 | -7/Factory | Entered Lower Caves 6312 | -7/Lower Caves | Accompanied by 8 allies 6394 | -7/Lower Caves | Encountered a Warlord checkpoint 6506 | -7/Lower Caves | A Commander dispatched an escort 6519 | -7/Lower Caves | Learned Extension emergency access door positions 6519 | -7/Lower Caves | Learned Armory emergency access door positions 6770 | -7/Lower Caves | Identified exit to Lower Caves 7236 | -7/Lower Caves | Found Prototype Device 7236 | -7/Lower Caves | Identified Heart of Steel 7936 | -7/Lower Caves | Entered another Lower Caves area 7936 | -7/Lower Caves | Accompanied by 9 allies 7937 | -7/Lower Caves | Commander's escort returned to base 7937 | -7/Lower Caves | Commander's escort returned to base 7942 | -7/Lower Caves | Discovered exit to Factory (range 8) 8013 | -7/Lower Caves | Learned 4 Factory zone layouts 8219 | -7/Lower Caves | Encountered a Warlord checkpoint 9060 | -7/Lower Caves | Discovered new exit (range 13) 9075 | -7/Lower Caves | Identified exit to Zion 9428 | -7/Lower Caves | Core integrity fell below 50% 9432 | -7/Lower Caves | P-60 Hacker assimilated allied F4-IWY(m) 9523 | -7/Lower Caves | Learned Research emergency access door positions 9523 | -7/Lower Caves | Learned Extension terminal intel 9699 | -7/Lower Caves | Entered Zion 9745 | -7/Zion | System corruption cleaned by Quarantine Array 9865 | -7/Zion | Discovered new exit (range 11) 9877 | -7/Zion | Identified exit to Proximity Caves 10291 | -7/Zion | Build established: Hacker-Assassin 10391 | -7/Zion | Heart of Steel transformed into Warbot 10454 | -7/Zion | Learned location of Data Miner (-6) 10513 | -7/Zion | Gained Derelict followers 10616 | -7/Zion | Found GAL Module 10720 | -7/Zion | Found Prototype Hackware 10720 | -7/Zion | Identified Exp. Hacking Suite 10723 | -7/Zion | Found Prototype Processor 10723 | -7/Zion | Identified Spectral Analyzer 10726 | -7/Zion | Found Prototype Processor 10726 | -7/Zion | Identified Exp. Signal Interpreter 10729 | -7/Zion | Found Prototype Processor 10729 | -7/Zion | Identified Exp. Targeting Computer 10734 | -7/Zion | Found Prototype Processor 10734 | -7/Zion | Identified Exp. Core Analyzer 10737 | -7/Zion | Found Prototype Processor 10737 | -7/Zion | Identified Exp. Armor Integrity Analyzer 10983 | -7/Zion | Discovered new exit (range 10) 11209 | -7/Zion | Saw the warning signs outside the Deep Caves entrance 11210 | -7/Zion | Identified exit to Deep Caves 11221 | -7/Zion | Entered Deep Caves 11221 | -7/Deep Caves | Accompanied by 3 allies (Warbot) 11223 | -7/Deep Caves | Reached level 19 11309 | -7/Deep Caves | Build established: Hacker-Skirmisher 11456 | -7/Deep Caves | Attacked by Z-Imprinter 11478 | -7/Deep Caves | Allies destroyed Z-Imprinter 11522 | -7/Deep Caves | Found Prototype Protection 11522 | -7/Deep Caves | Identified Zio. Weapon Casing 11568 | -7/Deep Caves | Found Surveybot 24 Scanner 11686 | -7/Deep Caves | Z-Facility disabled 11951 | -7/Deep Caves | Discovered new exit (range 19) 12006 | -7/Deep Caves | Identified exit to Proximity Caves 12218 | -7/Deep Caves | Spotted as-63640 12229 | -7/Deep Caves | Destroyed as-63640 12272 | -7/Deep Caves | Spotted as-98056 12282 | -7/Deep Caves | Destroyed as-98056 12370 | -7/Deep Caves | Triggered Deep Caves wall 12370 | -7/Deep Caves | Spotted AS-40388 12370 | -7/Deep Caves | Spotted AS-79297 12373 | -7/Deep Caves | Destroyed AS-79297 12376 | -7/Deep Caves | Destroyed AS-40388 12390 | -7/Deep Caves | Exposed GOLEM chamber 12394 | -7/Deep Caves | Destroyed 36 combat bots 12394 | -7/Deep Caves | Found GOLEM Unit 13709 | -7/Deep Caves | Entered Proximity Caves 13709 | -6/Proximity Caves | Accompanied by 1 ally (Warbot) 14347 | -6/Proximity Caves | Discovered exit to Factory (range 20) 14551 | -6/Proximity Caves | Entered Factory 14551 | -6/Factory | Accompanied by 1 ally (Warbot) 14552 | -6/Factory | Identified exit to Lower Caves 14553 | -6/Factory | Reached level 20 14774 | -6/Factory | Discovered new exit (range 16) 14775 | -6/Factory | Garrison activated, responded to threat 14805 | -6/Factory | Destroyed 7 combat bots 14901 | -6/Factory | First assault squad dispatched 15063 | -6/Factory | Identified exit to Extension 15119 | -6/Factory | Core integrity fell below 50% 15160 | -6/Factory | Destroyed 7 combat bots 15204 | -6/Factory | Identified exit to Factory 15214 | -6/Factory | Upgraded with Weapon slot (x1) 15344 | -6/Factory | Reached level 21 15457 | -6/Factory | Sucked down chute 15457 | -6/Factory | Entered Waste 15458 | -6/Waste | Met a frightened Derelict 15463 | -6/Waste | Spotted C-40 Crusher 15466 | -6/Waste | Destroyed C-40 Crusher 15472 | -6/Waste | EMP discharged 15506 | -6/Waste | Spotted C-40 Crusher 15513 | -6/Waste | Spotted C-40 Crusher 15514 | -6/Waste | Destroyed C-40 Crusher 15522 | -6/Waste | Spotted C-40 Crusher 15522 | -6/Waste | Destroyed C-40 Crusher 15536 | -6/Waste | Destroyed C-40 Crusher 15540 | -6/Waste | Spotted C-40 Crusher 15543 | -6/Waste | Spotted C-40 Crusher 15549 | -6/Waste | Destroyed C-40 Crusher 15554 | -6/Waste | Destroyed C-40 Crusher 15572 | -6/Waste | EMP discharged 15572 | -6/Waste | System corruption reached 10% 15665 | -6/Waste | Discovered new exit (range 12) 15672 | -6/Waste | EMP discharged 15679 | -6/Waste | Identified exit to Factory 15680 | -6/Waste | Entered Factory 15916 | -6/Factory | Discovered exit to Extension (range 17) 16000 | -6/Factory | Entered Extension 16002 | -6/Extension | Loaded intel: 15 terminal locations 16052 | -6/Extension | Rescued a captive Derelict 16058 | -6/Extension | Rescued a captive Derelict 16181 | -6/Extension | Rescued a captive Derelict 16298 | -6/Extension | Rescued A7 16314 | -6/Extension | Rescued a captive Derelict 16314 | -6/Extension | Rescued a captive Derelict 16329 | -6/Extension | Rescued a captive Derelict 16333 | -6/Extension | Rescued a captive Derelict 16343 | -6/Extension | Spotted B-75 Beast 16355 | -6/Extension | Discovered exit to Factory (range 19) 16358 | -6/Extension | Spotted B-75 Beast 16370 | -6/Extension | Allies destroyed B-75 Beast 16386 | -6/Extension | Destroyed B-75 Beast 16544 | -6/Extension | Rescued a captive Derelict 16545 | -6/Extension | Rescued a captive Derelict 16598 | -6/Extension | Rescued a captive Derelict 16688 | -6/Extension | Rescued a captive Derelict 16689 | -6/Extension | Rescued a captive Derelict 16705 | -6/Extension | Reached level 22 16802 | -6/Extension | Build established: Commander-Skirmisher 16819 | -6/Extension | Discovered exit to Factory (range 20) 16860 | -6/Extension | Discovered new exit (range 15) 16877 | -6/Extension | Identified exit to Cetus 16911 | -6/Extension | Entered Cetus 16911 | -6/Cetus | Accompanied by 22 allies (A7) 16916 | -6/Cetus | Acquired a Cetus Manufacturing Module code from A7 16924 | -6/Cetus | Spotted Cetus Guard 16924 | -6/Cetus | Spotted Cetus Guard 16925 | -6/Cetus | Spotted Cetus Guard 16938 | -6/Cetus | Allies destroyed Cetus Guard 16938 | -6/Cetus | Spotted Cetus Guard 16942 | -6/Cetus | Allies destroyed Cetus Guard 16948 | -6/Cetus | Allies destroyed Cetus Guard 16971 | -6/Cetus | Upgraded with Power slot (x1) 16974 | -6/Cetus | Upgraded with Power slot (x1) 17035 | -6/Cetus | Started Cetus Manufacturing Module 17044 | -6/Cetus | Escorted A7 to Cetus Mainframe 17057 | -6/Cetus | Discovered new exit (range 20) 17060 | -6/Cetus | Manufactured an Enhanced Grunt 17082 | -6/Cetus | Spotted Cetus Guard 17083 | -6/Cetus | Spotted Cetus Guard 17085 | -6/Cetus | Manufactured an Enhanced Grunt 17086 | -6/Cetus | Spotted Cetus Guard 17086 | -6/Cetus | Spotted Cetus Guard 17101 | -6/Cetus | Cetus Manufacturing Module disabled 17103 | -6/Cetus | Destroyed Cetus Guard 17104 | -6/Cetus | Allies destroyed Cetus Guard 17107 | -6/Cetus | Destroyed Cetus Guard 17109 | -6/Cetus | Allies destroyed Cetus Guard 17126 | -6/Cetus | Met Revision 17 17168 | -6/Cetus | Identified exit to Archives 17182 | -6/Cetus | Entered Archives 17182 | -6/Archives | Accompanied by 9 allies (A7) 17187 | -6/Archives | Received a hacking code to weaken MAIN.C 17212 | -6/Archives | Discovered exit to Factory (range 20) 17247 | -6/Archives | Discovered new exit (range 18) 17258 | -6/Archives | Identified exit to Hub_04(d) 17514 | -6/Archives | Build established: Generator-Mutant 17679 | -6/Archives | Upgraded with Weapon slot (x1) 17953 | -6/Archives | Build established: Generator-Assassin 18961 | -6/Archives | Entered Hub_04(d) 18961 | -6/Hub_04(d) | Accompanied by 8 allies 19445 | -6/Hub_04(d) | Network Hub disabled 19526 | -6/Hub_04(d) | Network Hub disabled 19533 | -6/Hub_04(d) | Spotted Lightning 19533 | -6/Hub_04(d) | Spotted Lightning 19535 | -6/Hub_04(d) | Spotted Lightning 19544 | -6/Hub_04(d) | Core integrity fell below 20% 19546 | -6/Hub_04(d) | Destroyed by Lightning with EMDS Last Messages --------------- 19490_ H-61 Shepherd destroyed. 19490_ U-05 Engineer destroyed. 19490_ Slug penetrates Earth. 19524_ Slug penetrates Wall. 19526_ ALERT: Network intrusion management efficiency at 70%. 19526_ Network Hub explodes. 19526_ Terminal disabled. 19526_ Door malfunctions. 19526_ ALERT: Construction progress impeded, dispatching reinforcements to local area. 19533_ EMDS Slug penetrates Wall. 19534_ Penetrated by EMDS Slug. 19535_ Slug penetrates Lightning. 19537_ Penetrated by EMDS Slug. 19539_ Slug penetrates Lightning. 19539_ Penetrated by EMDS Slug. 19541_ >> DECODED: Power Amplifier location. 19541_ Penetrated by EMDS Slug. 19543_ Slug penetrates Lightning. 19543_ Penetrated by EMDS Slug. Map ----- +----------------------------------------------------+ | ???? ##### = * "## | | ???? #####